bitfinex-derivatives/quotes_ETHF0:USTF0_20251001
["timestamp","ask_amount","ask_price","bid_price","bid_amount"]
[1759299706731,0.9189,4141.5,4141.4,0.89361]
[1759299706936,0.9189,4141.5,4141.4,1.44001]
[1759299707540,0.566,4141.5,4141.4,1.44001]
[1759299707743,0.7809,4141.5,4141.4,1.44001]
[1759299708131,0.7809,4141.5,4140.9,1.19065167]
[1759299708132,0.43453,4141.2,4140.9,1.19065167]
[1759299708340,0.9189,4141.0,4140.9,0.43457]
[1759299709048,0.9189,4141.0,4140.9,0.64867]
[1759299709934,0.9189,4141.0,4140.9,0.43457]
[1759299710539,0.9189,4141.0,4140.9,0.64867]
[1759299710931,0.9189,4141.0,4140.9,0.43457]
[1759299712050,0.7809,4140.4,4140.3,4.10153]
[1759299712238,0.7809,4140.4,4140.3,4.42523]
[1759299712946,0.7809,4140.4,4140.3,4.64793]
[1759299719850,0.566,4140.4,4140.3,4.64793]
[1759299720056,1.21698,4140.8,4140.7,1.20789]
[1759299720545,0.7824,4140.8,4140.7,1.20789]
[1759299721254,1.21698,4140.8,4140.7,1.20789]
[1759299721456,0.43461,4140.5,4140.4,0.3385]
[1759299721653,1.34321,4140.5,4140.4,0.65792]
[1759299721857,0.9086,4140.5,4140.4,0.65792]
[1759299722654,1.34321,4140.5,4140.4,0.2233]
[1759299722857,1.21702,4140.4,4140.3,3.2078]
[1759299723158,2.22467612,4140.4,4140.3,3.2078]
[1759299723956,0.7824,4140.2,4140.1,0.65794]
[1759299725156,1.21704,4140.2,4140.1,0.2233]
[1759299725753,1.21704,4140.2,4140.1,0.5618]
[1759299726056,1.21704,4140.2,4140.1,0.7733]
[1759299726457,1.21704,4140.2,4140.1,0.4348]
[1759299726654,0.43466,4140.0,4139.9,0.245]
[1759299726958,1.21708,4139.8,4139.7,0.2233]
[1759299727155,1.00521,4139.5,4139.4,0.22624764]
[1759299727357,1.34331,4139.5,4139.4,0.00294764]
[1759299727755,0.9086,4139.5,4139.4,0.22624764]
[1759299728654,0.9086,4139.5,4139.4,0.56474764]
[1759299729456,0.9086,4139.5,4139.4,0.22624764]
[1759299729961,0.9086,4139.5,4139.4,0.00294764]
[1759299730354,0.9086,4139.5,4139.4,0.22624764]
[1759299731057,0.9086,4139.5,4139.4,0.00294764]
[1759299732061,1.34331,4139.5,4139.4,0.00294764]
[1759299733459,1.58831,4139.5,4139.4,0.22624764]
[1759299733661,1.58831,4139.5,4139.4,0.00294764]
[1759299735058,1.34331,4139.5,4139.4,0.00294764]
[1759299735261,1.58831,4139.5,4139.4,0.00294764]
[1759299737260,1.34331,4139.5,4139.4,0.00294764]
[1759299737562,1.58831,4139.5,4139.4,0.22624764]
[1759299738159,1.58831,4139.5,4139.4,0.00294764]
[1759299738464,2.59596612,4139.5,4139.4,0.00294764]
[1759299741757,2.59596612,4139.5,4138.5,0.3814]
[1759299741758,0.7838,4138.4,4138.3,1.17494]
[1759299741960,0.5631,4138.4,4138.3,1.17494]
[1759299742162,1.21859,4138.8,4138.7,1.1749]
[1759299742361,1.21859,4138.8,4138.7,0.7401]
[1759299742764,1.22169907,4138.8,4138.7,1.17798488]
[1759299743067,0.78690907,4138.8,4138.7,1.17798488]
[1759299743270,1.22429907,4138.8,4138.7,1.17798488]
[1759299744174,1.19759907,4138.8,4138.7,1.17798488]
[1759299744670,1.19759907,4138.8,4138.7,0.74318488]
[1759299745070,1.19759907,4138.8,4138.7,0.43158488]
[1759299746668,1.19759907,4138.8,4138.7,0.65198488]
[1759299746969,1.00780907,4138.8,4138.7,1.19308488]
[1759299747365,0.00310907,4138.8,4138.7,1.19308488]
[1759299747760,0.00310907,4138.8,4138.7,2.200741]
[1759299748269,0.00310907,4138.8,4138.7,10.408541]
[1759299749068,3.2078,4139.6,4138.7,10.408541]
[1759299749069,3.2078,4139.6,4139.5,1.31251]
[1759299749371,3.5392,4139.6,4139.5,1.31251]
[1759299749670,3.7492,4139.6,4139.5,1.31251]
[1759299750070,3.75167688,4139.6,4139.5,1.31251]
[1759299750570,0.00247688,4139.6,4139.5,6.31251]
[1759299754068,0.76217688,4139.6,4139.5,1.18791]
[1759299754869,0.21247688,4139.6,4139.5,1.31251]
[1759299755166,0.4571,4139.5,4139.4,1.00692]
[1759299755370,0.8854,4139.5,4139.4,0.67972]
[1759299755571,0.8854,4139.5,4139.4,0.89182]
[1759299755972,0.8854,4139.5,4139.4,1.21902]
[1759299756272,0.8854,4139.5,4139.4,0.97402]
[1759299756674,0.8854,4139.5,4139.4,0.64682]
[1759299757779,0.8854,4139.5,4139.4,0.97402]
[1759299758981,1.32011,4139.5,4139.4,0.2121]
[1759299759183,0.7597,4139.1,4139.0,0.43476]
[1759299759489,0.7597,4139.1,4139.0,0.64686]
[1759299760381,1.19446,4139.1,4139.0,0.64686]
[1759299760679,0.7597,4139.1,4139.0,0.64686]
[1759299761188,0.7597,4139.1,4139.0,1.18796]
[1759299761684,0.7597,4139.1,4139.0,0.2121]
[1759299761880,0.7597,4139.1,4138.9,0.43477]
[1759299762083,0.8854,4139.0,4138.9,0.43477]
[1759299762274,0.8854,4139.0,4138.9,0.97407]
[1759299762474,0.8854,4139.0,4138.9,1.18797]
[1759299762678,0.7597,4139.0,4138.9,1.18797]
[1759299763181,0.8854,4139.0,4138.9,0.7532]
[1759299763371,0.8854,4139.0,4138.9,0.426]
[1759299764077,0.7597,4139.0,4138.9,0.7532]
[1759299765583,0.8854,4139.0,4138.9,0.7532]
[1759299766286,0.7597,4139.0,4138.9,0.7532]
[1759299766583,0.5414,4139.0,4138.9,0.7532]
[1759299769081,0.5414,4139.0,4138.9,0.86078]
[1759299769082,0.8854,4139.0,4138.9,0.86078]
[1759299769387,0.8854,4139.0,4138.9,1.18798]
[1759299769888,0.7597,4139.0,4138.9,1.18798]
[1759299771884,1.19449,4138.8,4138.7,0.00308488]
[1759299775189,0.7597,4138.8,4138.7,0.00308488]
[1759299775382,1.631556,4138.8,4138.7,0.00308488]
[1759299776696,1.876556,4138.8,4138.7,0.00308488]
[1759299776992,6.876556,4138.8,4138.7,0.00308488]
[1759299777187,1.31897,4138.0,4137.9,0.02416714]
[1759299777488,2.190826,4138.0,4137.9,0.02416714]
[1759299778191,2.190826,4138.0,4137.9,0.02628587]
[1759299780285,2.190826,4138.0,4137.9,0.24248587]
[1759299780286,2.000956,4138.0,4137.9,0.24248587]
[1759299780484,2.000956,4138.0,4137.9,0.02628587]
[1759299781687,2.000956,4138.0,4137.9,0.47098587]
[1759299781888,2.000956,4138.0,4137.9,0.24248587]
[1759299782191,2.000956,4138.0,4137.9,0.02628587]
[1759299782985,2.000956,4138.0,4137.9,0.00211873]
[1759299783183,0.1246,4137.0,4136.8,0.43499]
[1759299783490,0.7595,4136.9,4136.8,1.19099]
[1759299784089,0.7595,4136.9,4136.8,1.19352234]
[1759299785091,3.7696,4137.5,4137.4,0.2162]
[1759299785288,0.4372,4137.5,4137.4,0.756]
[1759299785693,0.7595,4137.5,4137.4,0.756]
[1759299786696,0.7595,4137.5,4137.2,0.43495]
[1759299786697,1.19443,4137.4,4137.2,0.43495]
[1759299786896,0.7595,4136.9,4136.8,0.65372234]
[1759299787889,1.19449,4136.9,4136.8,0.65372234]
[1759299788190,1.19449,4136.9,4136.8,0.00253234]
[1759299788392,0.7595,4136.3,4136.2,3.2078]
[1759299788596,1.876356,4136.3,4136.2,3.2078]
[1759299788990,0.4372,4135.8,4135.7,3.64291]
[1759299789201,0.7595,4135.8,4135.7,3.2078]
[1759299789391,0.76249089,4135.8,4135.7,3.20952405]
[1759299789598,1.63434689,4135.8,4135.7,3.20952405]
[1759299790199,1.63434689,4135.8,4135.7,0.00172405]
[1759299790591,0.7595,4134.8,4134.7,4.39902]
[1759299791100,0.7595,4134.8,4134.7,3.9638]
[1759299791299,1.631356,4134.8,4134.7,0.2162]
[1759299791498,1.631356,4134.8,4134.2,3.2078]
[1759299791499,0.3223,4134.4,4134.2,3.5191]
[1759299791701,0.7595,4134.3,4134.2,3.42697295]
[1759299791899,0.7595,4134.3,4134.2,3.21077295]
[1759299792198,0.7595,4134.3,4132.9,0.02419638]
[1759299792199,0.5618,4133.0,4132.9,0.02419638]
[1759299792398,0.4372,4132.7,4132.6,0.65163]
[1759299792598,1.631356,4132.7,4132.6,0.65164]
[1759299792794,0.21,4132.7,4132.6,1.19144]
[1759299793100,0.5323,4133.4,4133.3,0.2162]
[1759299793399,0.00243785,4133.4,4133.3,1.19137]
[1759299793792,0.00243785,4133.4,4133.3,9.39917]
[1759299793994,0.00243785,4133.4,4133.3,10.271026]
[1759299794295,7.85e-06,4133.4,4133.3,10.271026]
[1759299794601,7.85e-06,4133.4,4133.3,9.33387]
[1759299794903,0.5323,4134.4,4134.3,0.87996]
[1759299795205,0.5323,4134.4,4134.3,0.756]
[1759299795503,0.5323,4134.3,4134.2,1.19127]
[1759299795701,0.7595,4134.4,4134.3,0.5275]
[1759299795903,0.43978933,4134.4,4134.0,0.3113]
[1759299796103,0.21,4134.1,4134.0,0.5275]
[1759299796298,0.00258933,4134.4,4134.3,0.2162]
[1759299796601,0.00258933,4134.4,4134.3,0.756]
[1759299797001,0.53488933,4134.4,4134.3,0.756]
[1759299797203,0.76208933,4134.4,4134.3,0.2162]
[1759299797400,0.3223,4134.3,4133.9,0.246]
[1759299797595,0.00258933,4134.4,4134.3,1.19126]
[1759299797797,0.53488933,4134.4,4134.3,1.19126]
[1759299798306,0.76208933,4134.4,4134.3,1.19126]
[1759299798506,0.76208933,4134.4,4134.3,0.4447]
[1759299799301,0.00258933,4134.4,4134.3,0.7632]
[1759299799892,0.21188933,4134.4,4134.3,0.7632]
[1759299801801,0.00258933,4134.4,4134.3,0.7632]
[1759299802003,0.00258933,4134.4,4134.3,9.218]
[1759299802202,3.7557,4135.4,4135.3,1.18745]
[1759299802607,0.5479,4135.4,4135.3,1.18745]
[1759299802906,0.2093,4135.4,4135.3,1.18745]
[1759299803100,0.3196,4135.3,4135.2,0.43516]
[1759299803306,0.3196,4135.2,4135.0,0.43517]
[1759299803506,0.7733,4135.1,4135.0,1.19407]
[1759299803700,0.00217966,4135.4,4135.3,1.19405]
[1759299803701,0.23237966,4135.4,4135.3,1.19405]
[1759299804006,0.45587966,4135.4,4135.3,0.4203]
[1759299804206,0.77547966,4135.4,4135.3,0.4203]
[1759299804504,0.77547966,4135.4,4135.3,0.7589]
[1759299804707,0.00217966,4135.4,4135.3,0.7589]
[1759299805409,0.23237966,4135.4,4135.3,0.7589]
[1759299806211,0.77547966,4135.4,4135.3,0.7589]
[1759299806808,0.55197966,4135.4,4135.3,0.7589]
[1759299807006,0.00217966,4135.4,4135.3,0.7589]
[1759299807304,0.00217966,4135.4,4135.3,8.77430418]
[1759299807808,3.7754,4136.4,4135.3,8.35400418]
[1759299807809,0.3196,4136.4,4135.3,8.35400418]
[1759299808106,0.2302,4136.7,4136.4,0.3386]
[1759299808404,0.2302,4136.7,4136.6,0.7589]
[1759299808614,3.7576,4136.9,4136.8,0.7589]
[1759299809004,3.75984311,4136.9,4136.8,0.7608779]
[1759299809911,3.98334311,4136.9,4136.8,0.7608779]
[1759299810217,0.77554311,4136.9,4136.8,0.7608779]
[1759299811610,0.23244311,4136.9,4136.8,0.7608779]
[1759299812109,0.55204311,4136.9,4136.8,0.7608779]
[1759299813203,0.00224311,4136.9,4136.8,3.77628208]
[1759299816207,0.77554311,4136.9,4136.8,0.7608779]
[1759299816411,3.98334311,4136.9,4136.8,0.0019779]
[1759299817210,8.98334311,4136.9,4136.8,0.0019779]
[1759299817612,3.98334311,4136.9,4136.8,0.0019779]
[1759299818110,0.8998,4136.0,4135.9,3.2078]
[1759299818616,0.8998,4136.0,4135.9,3.4202]
[1759299819113,0.8998,4136.0,4135.9,3.42278245]
[1759299819311,0.5802,4136.5,4136.4,0.43504]
[1759299819512,0.7733,4136.5,4136.4,1.19394]
[1759299819708,0.7733,4136.5,4136.4,0.2124]
[1759299819914,0.5802,4136.5,4136.3,0.43504]
[1759299820214,0.7733,4136.4,4136.3,0.64744]
[1759299821010,0.7733,4136.4,4136.3,0.2124]
[1759299821311,0.43505,4136.3,4136.0,0.43507]
[1759299821517,0.7733,4136.1,4136.0,0.64747]
[1759299822906,0.7733,4136.1,4136.0,1.19397]
[1759299823615,1.01528,4136.0,4135.9,0.00258245]
[1759299823805,0.8998,4136.0,4135.9,0.00258245]
[1759299824009,0.8998,4136.0,4135.9,0.42288245]
[1759299824307,0.7733,4136.0,4135.9,0.76148245]
[1759299824507,0.8998,4136.0,4135.9,0.42288245]
[1759299824707,0.8998,4136.0,4135.9,0.21498245]
[1759299825114,0.8998,4136.0,4135.9,0.00258245]
[1759299825608,0.8998,4136.0,4135.9,0.42288245]
[1759299826607,0.8998,4136.0,4135.9,0.85797245]
[1759299826803,0.2302,4136.0,4135.9,1.19657245]
[1759299827415,0.4537,4136.3,4136.2,1.19396]
[1759299827615,0.2302,4136.3,4136.2,1.19396]
[1759299828013,3.2078,4136.4,4136.3,0.77365]
[1759299828212,0.5498,4136.6,4136.5,1.19393]
[1759299828418,0.7733,4136.6,4136.5,1.19393]
[1759299828721,0.2302,4136.6,4136.5,1.19393]
[1759299829014,0.2302,4136.6,4136.5,1.33023]
[1759299830011,0.5498,4136.6,4136.5,1.19393]
[1759299830310,0.2302,4136.2,4136.1,0.7589]
[1759299830515,0.5498,4136.2,4136.1,1.19397]
[1759299831113,0.2302,4136.2,4136.1,1.19397]
[1759299832615,0.7733,4136.5,4136.4,1.19394]
[1759299833215,0.9082,4136.5,4136.4,0.2124]
[1759299833413,0.9082,4136.5,4136.4,0.64744]
[1759299833715,1.34323,4136.5,4136.4,0.2124]
[1759299834320,1.34323,4136.5,4136.4,0.64744]
[1759299835212,0.9082,4136.5,4136.4,0.64744]
[1759299835414,1.34323,4136.5,4136.4,0.2124]
[1759299836316,1.18526,4136.3,4136.2,0.66326]
[1759299836817,1.18526,4136.3,4136.2,0.2282]
[1759299837017,1.18526,4136.2,4136.1,0.2282]
[1759299837218,0.8851,4136.0,4135.9,0.91386245]
[1759299837416,0.7502,4136.0,4135.9,1.45426245]
[1759299839918,1.32018,4136.0,4135.9,0.43767245]
[1759299840120,1.32018,4136.0,4135.9,0.00258245]
[1759299841815,1.32018,4136.0,4135.9,0.66587245]
[1759299842012,0.7502,4136.0,4135.9,1.20627245]
[1759299842814,1.18528,4136.0,4135.9,1.20627245]
[1759299843323,0.7502,4136.0,4135.9,1.20627245]
[1759299843514,0.22,4136.0,4135.9,1.20627245]
[1759299844023,0.5383,4136.5,4136.4,1.20364]
[1759299844323,0.8851,4136.5,4136.4,1.20364]
[1759299845126,0.7502,4136.5,4136.4,1.20364]
[1759299845717,0.3183,4136.8,4136.5,1.08757]
[1759299845921,3.21004311,4136.9,4136.5,1.08757]
[1759299845922,3.21004311,4136.9,4136.8,0.435]
[1759299846222,3.21004311,4136.9,4136.8,1.2036]
[1759299846223,3.96024311,4136.9,4136.8,1.2036]
[1759299846425,3.96024311,4136.9,4136.8,0.8719]
[1759299846626,3.96024311,4136.9,4136.8,0.6632]
[1759299846816,3.96024311,4136.9,4136.8,0.8719]
[1759299847019,3.96024311,4136.9,4136.8,1.2036]
[1759299848022,3.74834311,4136.9,4136.8,1.2036]
[1759299848931,3.96024311,4136.9,4136.8,1.2036]
[1759299851734,0.00224311,4136.9,4136.8,1.2036]
[1759299854619,0.5383,4137.8,4137.7,0.9948]
[1759299854824,0.5383,4137.8,4137.7,1.2035]
[1759299855225,0.7502,4137.8,4137.7,1.2035]
[1759299855421,0.022,4137.9,4137.7,0.8718]
[1759299855723,0.02470182,4137.9,4137.8,0.7686]
[1759299856030,0.77490182,4137.9,4137.8,0.7686]
[1759299856233,0.3183,4137.8,4137.7,0.6819]
[1759299856435,0.7502,4137.8,4137.7,1.4505]
[1759299856837,0.02470182,4137.9,4137.7,1.1188]
[1759299857128,0.77490182,4137.9,4137.8,0.4369]
[1759299857335,0.77490182,4137.9,4137.8,0.2282]
[1759299857534,0.77490182,4137.9,4137.8,0.7686]
[1759299858031,0.77490182,4137.9,4137.8,0.4369]
[1759299858432,0.77490182,4137.9,4137.8,0.7686]
[1759299859129,0.45660182,4137.9,4137.8,0.43489]
[1759299859432,0.80070182,4137.9,4137.8,0.43489]
[1759299859735,0.80070182,4137.9,4137.8,0.65739]
[1759299860138,0.24470182,4137.9,4137.8,1.21039]
[1759299860534,0.58880182,4137.9,4137.8,1.21039]
[1759299861136,0.81730182,4137.9,4137.8,1.21039]
[1759299861734,0.5726,4138.7,4138.6,0.7755]
[1759299862038,0.7807,4138.6,4138.5,0.43481]
[1759299862230,0.7807,4138.3,4138.2,0.3393]
[1759299862429,0.7807,4138.3,4138.2,0.5618]
[1759299862829,0.78246821,4138.3,4138.2,0.43485]
[1759299863037,0.7807,4137.8,4137.7,0.6574]
[1759299863232,0.7807,4137.8,4137.7,0.973]
[1759299863845,0.7807,4137.8,4137.7,1.1829]
[1759299864136,0.7807,4137.8,4137.7,0.4349]
[1759299864434,0.3385,4137.7,4137.6,0.68191]
[1759299864639,0.7768,4137.7,4137.6,1.20671]
[1759299864938,3.4244,4139.7,4139.6,0.8538]
[1759299865237,3.4244,4139.7,4139.6,2.17877944]
[1759299865238,0.2166,4139.7,4139.6,2.17877944]
[1759299865533,0.4383,4139.7,4139.6,1.1694]
[1759299865735,0.3385,4139.6,4139.5,0.4347]
[1759299865930,0.77955575,4139.6,4139.5,0.43641848]
[1759299866527,0.77955575,4139.6,4139.5,0.00171848]
[1759299872031,0.77955575,4139.6,4139.5,0.52651848]
[1759299873138,0.44105575,4139.6,4139.5,0.73641848]
[1759299873347,0.44105575,4139.6,4139.5,0.86251848]
[1759299874041,0.77955575,4139.6,4139.5,0.00171848]
[1759299874544,0.77955575,4139.6,4139.5,0.43642848]
[1759299875346,0.77955575,4139.6,4139.5,0.00171848]
[1759299877242,1.46325575,4139.6,4139.5,1.848e-05]
[1759299877445,6.46325575,4139.6,4139.5,1.848e-05]
[1759299877943,6.21425575,4139.6,4139.5,1.848e-05]
[1759299878149,1.46325575,4139.6,4139.5,0.52481848]
[1759299878945,0.87575575,4139.6,4139.5,1.29552848]
[1759299879151,0.44105575,4139.6,4139.5,1.29552848]
[1759299879846,0.87575575,4139.6,4139.5,1.29552848]
[1759299880049,0.87575575,4139.6,4139.5,0.86081848]
[1759299880545,0.87575575,4139.6,4139.5,1.29552848]
[1759299880546,0.44105575,4139.6,4139.5,1.29552848]
[1759299880750,0.00275575,4139.6,4139.5,1.29552848]
[1759299881150,0.21935575,4139.6,4139.5,1.29552848]
[1759299881450,0.65405575,4139.6,4139.5,1.29552848]
[1759299881950,0.65405575,4139.6,4139.5,0.86081848]
[1759299882144,0.65405575,4139.6,4139.5,1.29552848]
[1759299883155,0.87575575,4139.6,4139.5,0.86081848]
[1759299883454,0.87575575,4139.6,4139.5,1.29552848]
[1759299884449,0.87575575,4139.6,4139.5,0.86081848]
[1759299884749,1.21425575,4139.6,4139.5,0.52481848]
[1759299885148,1.21425575,4139.6,4139.5,0.31561848]
[1759299885446,1.46325575,4139.6,4139.5,0.95952848]
[1759299885652,1.46325575,4139.6,4139.5,1.29552848]
[1759299885653,1.12475575,4139.6,4139.5,1.29552848]
[1759299885855,1.46325575,4139.6,4139.5,0.86081848]
[1759299887852,1.46325575,4139.6,4139.5,0.31561848]
[1759299888157,1.12475575,4139.6,4139.5,1.848e-05]
[1759299888551,1.12475575,4139.6,4139.5,0.20921848]
[1759299888757,1.46325575,4139.6,4139.5,0.52481848]
[1759299888951,1.12475575,4139.6,4139.5,1.29552848]
[1759299889351,1.46325575,4139.6,4139.5,1.29552848]
[1759299891055,0.44105575,4139.6,4139.5,1.29552848]
[1759299891256,0.00275575,4139.6,4139.5,1.29552848]
[1759299893864,0.43745575,4139.6,4139.5,1.29552848]
[1759299894063,0.00275575,4139.6,4139.5,1.29552848]
[1759299897362,0.65415575,4139.6,4139.5,1.29552848]
[1759299897562,1.20305575,4139.6,4139.5,0.86081848]
[1759299897958,0.88205575,4139.6,4139.5,1.29552848]
[1759299898252,0.44735575,4139.6,4139.5,1.29552848]
[1759299899259,0.44735575,4139.6,4139.5,0.52481848]
[1759299899260,1.20305575,4139.6,4139.5,0.52481848]
[1759299899563,0.88205575,4139.6,4139.5,1.848e-05]
[1759299899767,0.88205575,4139.6,4139.5,0.33001848]
[1759299899967,0.88205575,4139.6,4139.5,0.54921848]
[1759299900169,1.20305575,4139.6,4139.5,1.11632848]
[1759299900465,1.20305575,4139.6,4139.5,1.33542848]
[1759299901370,1.20305575,4139.6,4139.5,0.90071848]
[1759299901561,0.88205575,4139.6,4139.5,1.848e-05]
[1759299901760,5.88205575,4139.6,4139.5,1.848e-05]
[1759299902163,5.88205575,4139.6,4139.5,0.35161848]
[1759299902164,1.13005575,4139.6,4139.5,0.35161848]
[1759299902368,1.13005575,4139.6,4139.5,0.90071848]
[1759299902565,1.45105575,4139.6,4139.5,0.33001848]
[1759299903068,1.45105575,4139.6,4139.5,0.54921848]
[1759299903268,1.45105575,4139.6,4139.5,0.68161848]
[1759299903965,1.45105575,4139.6,4139.5,0.54921848]
[1759299904870,1.13005575,4139.6,4139.5,1.848e-05]
[1759299906160,6.13005575,4139.6,4139.5,1.848e-05]
[1759299906769,0.87944,4138.3,4138.2,3.2078]
[1759299906967,1.12744,4138.3,4138.2,3.2078]
[1759299907173,1.12744,4138.3,4138.2,3.6461]
[1759299907366,1.12744,4138.3,4138.2,3.9761]
[1759299907773,1.12744,4138.3,4138.2,3.97857882]
[1759299909064,3.2078,4138.9,4138.5,0.1324]
[1759299909264,3.2078,4138.9,4138.8,0.5492]
[1759299909265,3.7455,4138.9,4138.8,0.5492]
[1759299909464,4.2214,4138.9,4138.8,0.5492]
[1759299909662,4.10728,4138.9,4138.8,0.7683]
[1759299909870,3.2078,4138.9,4138.8,0.7683]
[1759299914281,0.248,4139.0,4138.9,0.7683]
[1759299914481,0.248,4139.0,4138.9,1.6401571]
[1759299916783,3.2078,4139.4,4139.3,0.7683]
[1759299916985,3.4558,4139.4,4139.3,1.6401571]
[1759299917175,3.6725,4139.4,4139.3,1.6401571]
[1759299917574,3.4558,4139.4,4139.3,1.6401571]
[1759299917777,3.6725,4139.4,4139.3,1.6401571]
[1759299918079,3.85922,4139.4,4139.3,2.0748871]
[1759299918281,4.10722,4139.4,4139.3,2.0748871]
[1759299918980,3.2078,4139.4,4139.3,2.0748871]
[1759299919579,3.64252,4139.4,4139.3,2.0748871]
[1759299919785,3.2078,4139.4,4139.3,2.0748871]
[1759299919978,0.00275575,4139.6,4139.5,1.00541]
[1759299919979,0.24975575,4139.6,4139.5,1.00541]
[1759299920184,0.24975575,4139.6,4139.5,1.33541]
[1759299920683,0.68445575,4139.6,4139.5,1.33541]
[1759299921386,0.90395575,4139.6,4139.5,0.9007]
[1759299921684,0.90395575,4139.6,4139.5,1.33541]
[1759299922683,0.00275575,4139.6,4139.5,1.33541]
[1759299922888,0.65695575,4139.6,4139.5,1.33541]
[1759299923479,0.22225575,4139.6,4139.5,1.33541]
[1759299923784,0.00275575,4139.6,4139.5,1.33541]
[1759299925884,0.43455575,4139.6,4139.5,0.9007]
[1759299926079,0.76665575,4139.6,4139.5,0.9007]
[1759299926293,0.21465575,4139.6,4139.5,0.9007]
[1759299926487,0.00275575,4139.6,4139.5,0.9007]
[1759299926884,0.21465575,4139.6,4139.5,0.9007]
[1759299927190,0.00275575,4139.6,4139.5,0.9007]
[1759299928387,0.00275575,4139.6,4139.5,1.1477]
[1759299929581,0.247,4140.3,4140.2,1.21084]
[1759299929783,0.247,4140.3,4140.2,2.0826971]
[1759299930184,3.2078,4140.4,4140.3,1.21083]
[1759299930383,3.4197,4140.4,4140.3,1.21083]
[1759299930687,3.4224115,4140.4,4140.3,1.21083]
[1759299931183,3.8570315,4140.4,4140.3,1.21083]
[1759299931584,3.2105115,4140.4,4140.3,1.21083]
[1759299932386,0.0027115,4140.4,4140.3,1.21083]
[1759299933886,3.2078,4140.9,4140.8,1.21078]
[1759299934088,0.2119,4141.2,4141.1,0.86904]
[1759299934285,0.2119,4141.2,4141.1,1.21074]
[1759299934792,0.21408273,4141.2,4141.1,1.21359662]
[1759299935888,0.43398273,4141.2,4141.1,0.77905662]
[1759299936092,0.76608273,4141.2,4141.1,0.55905662]
[1759299936394,0.43398273,4141.2,4141.1,0.77905662]
[1759299937285,0.21408273,4141.2,4141.1,0.77905662]
[1759299937694,0.00218273,4141.2,4141.1,0.77905662]
[1759299938794,0.21408273,4141.2,4141.1,0.77905662]
[1759299939187,0.43398273,4141.2,4141.1,0.77905662]
[1759299939789,0.86851273,4141.2,4141.1,0.77905662]
[1759299939993,0.86851273,4141.2,4141.1,1.21359662]
[1759299941999,0.86851273,4141.2,4141.1,0.77905662]
[1759299942395,1.20061273,4141.2,4141.1,0.77905662]
[1759299942797,4.40841273,4141.2,4141.1,0.00285662]
[1759299943300,9.40841273,4141.2,4141.1,0.00285662]
[1759299945704,1.19853,4140.3,4140.2,0.5562]
[1759299946002,1.44553,4140.3,4140.2,0.5562]
[1759299946603,1.44553,4140.3,4140.2,0.3417]
[1759299946807,1.44553,4140.3,4140.2,0.34403063]
[1759299947095,1.44553,4140.3,4140.2,0.55853063]
[1759299947297,1.44553,4140.3,4140.2,0.34403063]
[1759299947503,1.44553,4140.3,4140.2,0.00233063]
[1759299949900,1.44553,4140.3,4140.2,0.55853063]
[1759299950100,1.44553,4140.3,4140.2,0.77853063]
[1759299951295,4.65333,4140.3,4140.2,0.77853063]
[1759299952099,4.65333,4140.3,4140.2,0.34403063]
[1759299952300,4.65333,4140.3,4140.2,0.00233063]
[1759299953908,4.65333,4140.3,4140.2,0.34133063]
[1759299954406,4.65233,4140.3,4140.2,0.76583063]
[1759299956106,4.65233,4140.3,4140.2,0.34133063]
[1759299956706,4.65233,4140.3,4140.2,0.55593063]
[1759299957203,4.65233,4140.3,4140.2,0.76583063]
[1759299960703,4.32023,4140.3,4140.2,0.76583063]
[1759299961310,4.65743,4140.3,4140.2,0.76583063]
[1759299961905,3.6396,4140.3,4140.2,1.20047063]
[1759299962106,3.2078,4140.3,4140.2,2.20842036]
[1759299962307,0.68063,4140.3,4140.2,2.20842036]
[1759299962701,0.246,4140.3,4140.2,2.20842036]
[1759299963003,4.08777,4140.9,4140.8,0.7635]
[1759299963311,4.33377,4140.9,4140.8,0.7635]
[1759299963609,4.67097,4140.9,4140.8,0.7635]
[1759299964309,0.88002,4140.4,4140.3,0.64922]
[1759299964503,1.12602,4140.4,4140.3,0.85912]
[1759299964907,1.12602,4140.4,4140.3,1.19812]
[1759299965606,0.90632,4140.4,4140.3,0.7635]
[1759299965806,1.12602,4140.4,4140.3,0.7635]
[1759299966206,1.46322,4140.4,4140.3,0.7635]
[1759299966908,1.12602,4140.4,4140.3,0.7635]
[1759299968413,1.12602,4140.4,4140.3,1.19813]
[1759299970519,0.6914,4140.4,4140.3,1.19813]
[1759299970717,1.12602,4140.4,4140.3,1.19813]
[1759299972714,1.12602,4140.4,4140.3,0.7635]
[1759299972917,1.21723,4140.3,4140.2,0.34133063]
[1759299973421,1.21723,4140.3,4140.2,0.99057063]
[1759299973924,1.21723,4140.3,4140.2,0.55593063]
[1759299975323,1.21723,4140.3,4140.2,0.99057063]
[1759299975523,1.21723,4140.3,4140.2,1.20047063]
[1759299975917,1.21723,4140.3,4140.2,0.76583063]
[1759299976421,1.46323,4140.3,4140.2,0.76583063]
[1759299976723,1.46323,4140.3,4140.2,1.20047063]
[1759299977020,1.46323,4140.3,4140.2,0.76583063]
[1759299977922,1.46323,4140.3,4140.2,1.20047063]
[1759299978830,1.46323,4140.3,4140.2,0.76583063]
[1759299979727,1.46323,4140.3,4140.2,1.20047063]
[1759299980121,1.12603,4140.3,4140.2,0.76583063]
[1759299981028,1.12603,4140.3,4140.2,1.20047063]
[1759299981225,0.6914,4140.3,4140.2,1.20047063]
[1759299981431,0.4717,4140.3,4140.2,1.20047063]
[1759299981622,0.246,4140.3,4140.2,1.20047063]
[1759299981926,0.43463,4140.3,4140.2,1.20047063]
[1759299983228,0.68062,4140.5,4140.4,0.43462]
[1759299983530,0.6806,4140.6,4140.5,1.33541]
[1759299983730,3.2078,4140.9,4140.8,0.4543]
[1759299984028,0.00218273,4141.2,4141.1,1.20685]
[1759299984231,0.00218273,4141.2,4141.1,2.21479973]
[1759299986630,0.00218273,4141.2,4141.1,1.78024973]
[1759299987021,0.42988273,4141.2,4141.1,0.7723]
[1759299987226,0.7504,4140.9,4140.8,0.318]
[1759299987421,0.7504,4140.9,4140.2,3.21013063]